[Event "8th Gibraltar U16-Junior 2018"]
[Site "Caleta"]
[Date "2018.08.19"]
[Round "5"]
[White "Carroll, Thomas"]
[Black "Krivenko, Dion"]
[Result "1/2-1/2"]
[ECO "D36"]
[WhiteElo "1965"]
[BlackElo "1635"]
[Annotator "NA"]
[PlyCount "81"]
[EventDate "2018.08.17"]
[EventType "swiss"]
[EventCountry "GGB"]
[SourceTitle "playchess.com"]
[Source "ChessBase"]
[SourceQuality "1"]
[TimeControl "6600+10"]

1. d4 {[%emt 0:00:00]} d5 {[%emt 0:00:00]} 2. c4 {[%emt 0:00:00]} e6 {[%emt 0:00:01]} 3. Nc3 {[%emt 0:00:00]} Nf6 {[%emt 0:00:12]} 4. cxd5 {[%emt 0:00:02]} exd5 {[%emt 0:00:14]} 5. Bg5 {[%emt 0:00:04]} Be7 {[%emt 0:00:09]} 6. e3 {[%emt 0:00:03]} O-O {[%emt 0:00:20]} 7. Bd3 {[%emt 0:00:02]} c6 {[%emt 0:00:33]} 8. Qc2 {[%emt 0:00:05]} Nbd7 {[%emt 0:00:32]} 9. Nge2 {[%emt 0:00:06]} Re8 {[%emt 0:00:45]} 10. O-O {[%emt 0:00:10]} Nf8 {[%emt 0:00:31]} 11. f3 {[%emt 0:00:46]} c5 {[%emt 0:29:16]} 12. Rad1 $14 {[%emt 0:04:31]} Be6 {[%emt 0:21:38]} 13. dxc5 {[%emt 0:10:07]} Qa5 {[%emt 0:11:50]} 14. Bb5 {[%emt 0:01:15]} Red8 {[%emt 0:02:46]} 15. c6 {[%emt 0:07:38]} bxc6 {[%emt 0:03:01]} 16. Bxc6 {[%emt 0:00:37]} Rac8 {[%emt 0:00:20]} 17. Nd4 {[%emt 0:00:58]} h6 {[%emt 0:05:57]} 18. Bxf6 {[%emt 0:07:01]} Bxf6 {[%emt 0:00:37]} 19. Ba4 {[%emt 0:03:29]} Bd7 {[%emt 0:06:10]} 20. Bb3 {[%emt 0:02:50]} Ne6 {[%emt 0:03:08]} 21. Qd2 {[%emt 0:02:43]} Nxd4 {[%emt 0:01:58]} 22. exd4 {[%emt 0:00:19]} Be6 {[%emt 0:03:50]} 23. Qd3 {[%emt 0:08:26]} g6 {[%emt 0:03:16]} 24. Qb5 {[%emt 0:01:44]} Qxb5 {[%emt 0:01:33]} 25. Nxb5 {[%emt 0:00:06]} a6 {[%emt 0:00:21]} 26. Nc3 {[%emt 0:00:16]} Kf8 {[%emt 0:00:46]} 27. Rfe1 {[%emt 0:00:36]} Kg7 {[%emt 0:00:48]} 28. Kf1 {[%emt 0:02:51]} h5 {[%emt 0:01:00]} 29. g3 {[%emt 0:03:59]} Kf8 {[%emt 0:01:02]} 30. Kf2 {[%emt 0:00:10]} Kg7 {[%emt 0:00:48]} 31. Re2 {[%emt 0:00:15]} Kf8 {[%emt 0:01:19]} 32. h4 {[%emt 0:00:10]} Kg7 {[%emt 0:00:36]} 33. Ree1 {[%emt 0:03:10]} Kf8 {[%emt 0:00:24]} 34. Ne2 {[%emt 0:00:23]} Ke7 {[%emt 0:01:24]} 35. Nf4 {[%emt 0:00:13]} Kd6 {[%emt 0:00:25]} 36. Re2 {[%emt 0:00:26]} Re8 {[%emt 0:00:55]} 37. Kg2 {[%emt 0:00:44]} Re7 {[%emt 0:01:10]} 38. Bc2 {[%emt 0:03:27]} Bh3+ {[%emt 0:02:34]} 39. Kxh3 {[%emt 0:00:34]} Rxe2 {[%emt 0:00:11]} 40. Nxe2 {[%emt 0:00:04]} Rxc2 {[%emt 0:00:17]} 41. Nc3 {[%emt 0:05:42]} 1/2-1/2

[Event "8th Gibraltar U16-Junior 2018"]
[Site "Caleta"]
[Date "2018.08.19"]
[Round "5"]
[White "Ledesma Claros, Daniel"]
[Black "Diaz Mino, Pablo"]
[Result "1-0"]
[ECO "C58"]
[WhiteElo "1954"]
[BlackElo "2052"]
[Annotator "NA"]
[PlyCount "119"]
[EventDate "2018.08.17"]
[EventType "swiss"]
[EventCountry "GGB"]
[SourceTitle "playchess.com"]
[Source "ChessBase"]
[SourceQuality "1"]
[TimeControl "6600+10"]

1. e4 {[%emt 0:00:00]} e5 {[%emt 0:00:00]} 2. Nf3 {[%emt 0:00:00]} Nc6 {[%emt 0:00:06]} 3. Bc4 {[%emt 0:00:02]} Nf6 {[%emt 0:00:08]} 4. Ng5 {[%emt 0:00:10]} d5 {[%emt 0:00:15]} 5. exd5 {[%emt 0:00:04]} Na5 {[%emt 0:00:05]} 6. Bb5+ {[%emt 0:00:05]} c6 {[%emt 0:00:06]} 7. dxc6 {[%emt 0:00:03]} bxc6 {[%emt 0:00:05]} 8. Bd3 {[%emt 0:00:16]} h6 {[%emt 0:11:27]} 9. Ne4 {[%emt 0:00:19]} Nd5 {[%emt 0:00:46]} 10. Ng3 {[%emt 0:14:35]} Nf4 {[%emt 0:09:44]} 11. O-O {[%emt 0:08:38]} Nxd3 {[%emt 0:03:33]} 12. cxd3 {[%emt 0:00:09]} Be7 {[%emt 0:01:06]} 13. Qh5 $11 {[%emt 0:05:23]} O-O {[%emt 0:02:42]} 14. Re1 {[%emt 0:12:41]} c5 {[%emt 0:04:27]} 15. Qxe5 {[%emt 0:05:43]} Nc6 {[%emt 0:00:46]} 16. Qe4 {[%emt 0:04:37]} Bb7 {[%emt 0:00:42]} 17. Nc3 {[%emt 0:01:43]} Re8 {[%emt 0:01:20]} 18. b3 {[%emt 0:04:12]} Qd7 {[%emt 0:00:56]} 19. Qf5 {[%emt 0:01:21]} Qd8 {[%emt 0:07:47]} 20. Qe4 {[%emt 0:04:12]} Rb8 {[%emt 0:22:58]} 21. Nf5 {[%emt 0:09:54]} Bf8 {[%emt 0:07:26]} 22. Qxe8 {[%emt 0:00:18]} Qxe8 {[%emt 0:00:05]} 23. Rxe8 {[%emt 0:00:06]} Rxe8 {[%emt 0:00:02]} 24. Ba3 {[%emt 0:03:05]} g6 {[%emt 0:03:05]} 25. Ne3 {[%emt 0:00:19]} Ne5 {[%emt 0:00:39]} 26. Ne4 {[%emt 0:04:03]} Rc8 {[%emt 0:01:08]} 27. Nf6+ {[%emt 0:16:18]} Kh8 {[%emt 0:00:48]} 28. Nc4 {[%emt 0:01:34]} Nxc4 {[%emt 0:04:49]} 29. bxc4 {[%emt 0:01:21]} Bg7 {[%emt 0:00:04]} 30. Rb1 {[%emt 0:00:37]} Bxg2 {[%emt 0:04:27]} 31. Kxg2 {[%emt 0:01:03]} Bxf6 {[%emt 0:00:02]} 32. Rb7 {[%emt 0:00:46]} Kg8 {[%emt 0:01:02]} 33. Rxa7 {[%emt 0:01:57]} Rc6 {[%emt 0:00:44]} 34. Ra8+ {[%emt 0:00:19]} Kg7 {[%emt 0:00:29]} 35. Rb8 {[%emt 0:00:15]} Bd4 {[%emt 0:02:33]} 36. Bb2 {[%emt 0:00:41]} Bxb2 {[%emt 0:00:01]} 37. Rxb2 {[%emt 0:00:06]} Kf6 {[%emt 0:00:09]} 38. a4 {[%emt 0:01:05]} Ke5 {[%emt 0:00:45]} 39. Rb7 {[%emt 0:05:35]} f5 {[%emt 0:08:24]} 40. Rd7 {[%emt 0:00:34]} h5 {[%emt 0:00:28]} 41. h4 {[%emt 0:00:14]} Kf4 {[%emt 0:05:32]} 42. d4 {[%emt 0:00:46]} cxd4 {[%emt 0:00:01]} 43. Rxd4+ {[%emt 0:00:01]} Ke5 {[%emt 0:00:01]} 44. Rd5+ {[%emt 0:00:01]} Ke4 {[%emt 0:00:01]} 45. d3+ {[%emt 0:00:03]} Kf4 {[%emt 0:00:01]} 46. c5 {[%emt 0:01:13]} Kg4 {[%emt 0:00:19]} 47. Rd4+ {[%emt 0:00:25]} f4 {[%emt 0:00:03]} 48. f3+ {[%emt 0:00:07]} Kf5 {[%emt 0:00:02]} 49. Rd5+ {[%emt 0:00:01]} Ke6 {[%emt 0:00:07]} 50. Rd6+ {[%emt 0:00:18]} Rxd6 {[%emt 0:00:01]} 51. cxd6 {[%emt 0:00:01]} Kxd6 {[%emt 0:00:00]} 52. Kf2 {[%emt 0:00:57]} Kc5 {[%emt 0:00:03]} 53. Ke2 {[%emt 0:00:19]} Kb4 {[%emt 0:00:01]} 54. d4 {[%emt 0:00:03]} Kxa4 {[%emt 0:00:21]} 55. Kd3 {[%emt 0:00:01]} Kb5 {[%emt 0:00:00]} 56. Ke4 {[%emt 0:00:06]} Kc4 {[%emt 0:00:00]} 57. d5 {[%emt 0:00:28]} Kc5 {[%emt 0:00:01]} 58. Kxf4 {[%emt 0:00:12]} Kxd5 {[%emt 0:00:01]} 59. Kg5 {[%emt 0:00:01]} Ke5 {[%emt 0:00:08]} 60. Kxg6 {[%emt 0:00:01]} 1-0

[Event "8th Gibraltar U16-Junior 2018"]
[Site "Caleta"]
[Date "2018.08.19"]
[Round "5"]
[White "Ifalore, Michael"]
[Black "Onslow, Alfie"]
[Result "1/2-1/2"]
[ECO "A39"]
[WhiteElo "1881"]
[BlackElo "2040"]
[Annotator "NA"]
[PlyCount "26"]
[EventDate "2018.08.17"]
[EventType "swiss"]
[EventCountry "GGB"]
[SourceTitle "playchess.com"]
[Source "ChessBase"]
[SourceQuality "1"]
[TimeControl "6600+10"]

{[%evp 14,26,56,52,32767,32767,32767,32767,32767,32767,22,20,18,23,38]} 1. Nf3 {[%emt 0:00:10]} d5 {[%emt 0:00:11]} 2. g3 {[%emt 0:00:25]} c5 {[%emt 0:02:19]} 3. Bg2 {[%emt 0:00:08]} Nf6 {[%emt 0:00:12]} 4. O-O {[%emt 0:00:07]} Nc6 {[%emt 0:00:12]} 5. d4 {[%emt 0:00:04]} cxd4 {[%emt 0:03:18]} 6. Nxd4 {[%emt 0:00:06]} g6 {[%emt 0:02:52]} 7. c4 {[%emt 0:01:00]} Bg7 {[%emt 0:18:26]} 8. Nc3 {[%emt 0:01:06]} O-O {[%emt 0:10:43]} 9. Nxc6 {[%emt 0:00:54]} bxc6 {[%emt 0:00:07]} 10. cxd5 {[%emt 0:00:07]} cxd5 {[%emt 0:00:11]} 11. Nxd5 {[%emt 0:00:22]} Nxd5 {[%emt 0:01:02]} 12. Bxd5 {[%emt 0:00:52]} Rb8 {[%emt 0:01:38]} 13. Bb3 {[%emt 0:00:14]} Qa5 $14 {[%emt 0:03:47]} 1/2-1/2

[Event "8th Gibraltar U16-Junior 2018"]
[Site "Caleta"]
[Date "2018.08.19"]
[Round "5"]
[White "Silva, Pedro Gil Ferreira "]
[Black "Guerreiro, Jose Velho"]
[Result "1-0"]
[ECO "B35"]
[WhiteElo "1795"]
[BlackElo "1525"]
[Annotator "NA"]
[PlyCount "49"]
[EventDate "2018.08.17"]
[EventType "swiss"]
[EventCountry "GGB"]
[SourceTitle "playchess.com"]
[Source "ChessBase"]
[SourceQuality "1"]
[TimeControl "6600+10"]

1. e4 {[%emt 0:00:00]} c5 {[%emt 0:00:11]} 2. Nf3 {[%emt 0:00:09]} Nc6 {[%emt 0:00:20]} 3. d4 {[%emt 0:00:23]} cxd4 {[%emt 0:00:28]} 4. Nxd4 {[%emt 0:00:36]} g6 {[%emt 0:01:20]} 5. Nc3 {[%emt 0:00:31]} Bg7 {[%emt 0:00:40]} 6. Be3 {[%emt 0:00:36]} Nf6 {[%emt 0:00:28]} 7. Bc4 {[%emt 0:01:24]} Qa5 {[%emt 0:02:10]} 8. O-O {[%emt 0:09:03]} Qb4 {[%emt 0:08:32]} 9. Bb3 {[%emt 0:01:20]} Nxe4 {[%emt 0:03:42]} 10. Nxe4 {[%emt 0:00:58]} Nxd4 {[%emt 0:00:49]} 11. c3 {[%emt 0:00:41]} Ne2+ {[%emt 0:00:36]} 12. Qxe2 {[%emt 0:00:14]} Qxe4 {[%emt 0:00:14]} 13. Rfe1 {[%emt 0:18:13]} O-O {[%emt 0:03:52]} 14. Qd2 {[%emt 0:03:50]} Qh4 {[%emt 0:05:31]} 15. Bg5 {[%emt 0:01:29]} Qg4 {[%emt 0:15:45]} 16. Bxe7 {[%emt 0:01:24]} Re8 {[%emt 0:01:00]} 17. Bd6 {[%emt 0:01:29]} Rd8 {[%emt 0:01:59]} 18. Qd5 {[%emt 0:01:20]} Qf5 {[%emt 0:06:16]} 19. Qxf5 {[%emt 0:02:19]} gxf5 {[%emt 0:00:18]} 20. Bc2 {[%emt 0:00:22]} b6 {[%emt 0:00:47]} 21. Bxf5 {[%emt 0:00:10]} Bb7 {[%emt 0:00:54]} 22. Be7 {[%emt 0:00:51]} Rdc8 {[%emt 0:02:51]} 23. Bxd7 {[%emt 0:00:20]} Rc7 {[%emt 0:00:48]} 24. Bh3 {[%emt 0:00:13]} Bc8 {[%emt 0:06:24]} 25. Bd6 {[%emt 0:00:58]} 1-0

[Event "8th Gibraltar U16-Junior 2018"]
[Site "Caleta"]
[Date "2018.08.19"]
[Round "5"]
[White "Lovell, William Pm"]
[Black "Howell, Oliver W"]
[Result "1/2-1/2"]
[ECO "A97"]
[WhiteElo "1783"]
[BlackElo "1853"]
[Annotator "NA"]
[PlyCount "52"]
[EventDate "2018.08.17"]
[EventType "swiss"]
[EventCountry "GGB"]
[SourceTitle "playchess.com"]
[Source "ChessBase"]
[SourceQuality "1"]
[TimeControl "6600+10"]

1. c4 {[%emt 0:00:00]} e6 {[%emt 0:00:00]} 2. g3 {[%emt 0:00:00]} f5 {[%emt 0:00:04]} 3. Bg2 {[%emt 0:00:00]} Nf6 {[%emt 0:00:11]} 4. Nf3 {[%emt 0:00:04]} Be7 {[%emt 0:00:28]} 5. Nc3 {[%emt 0:00:07]} O-O {[%emt 0:00:28]} 6. O-O {[%emt 0:00:07]} d6 {[%emt 0:00:19]} 7. b4 {[%emt 0:00:04]} Qe8 {[%emt 0:01:38]} 8. d4 {[%emt 0:00:09]} Qh5 {[%emt 0:02:08]} 9. Qd3 {[%emt 0:02:16]} Nc6 {[%emt 0:08:17]} 10. b5 {[%emt 0:09:41]} Nd8 {[%emt 0:01:11]} 11. a4 {[%emt 0:00:52]} Nf7 {[%emt 0:04:17]} 12. e4 {[%emt 0:02:37]} e5 {[%emt 0:02:17]} 13. dxe5 {[%emt 0:13:13]} dxe5 $11 {[%emt 0:00:25]} 14. Qe2 {[%emt 0:06:45]} Bb4 {[%emt 0:09:30]} 15. Nd5 {[%emt 0:02:50]} Nxd5 {[%emt 0:01:41]} 16. exd5 {[%emt 0:00:51]} e4 {[%emt 0:20:02]} 17. Nd4 {[%emt 0:00:40]} Qxe2 {[%emt 0:01:58]} 18. Nxe2 {[%emt 0:00:01]} Bd7 {[%emt 0:02:38]} 19. Ba3 {[%emt 0:02:58]} Bxa3 {[%emt 0:06:53]} 20. Rxa3 {[%emt 0:00:02]} Ne5 {[%emt 0:03:38]} 21. Rc1 {[%emt 0:06:45]} a6 {[%emt 0:05:33]} 22. Rcc3 {[%emt 0:05:26]} axb5 {[%emt 0:03:58]} 23. cxb5 {[%emt 0:00:53]} c6 {[%emt 0:02:02]} 24. dxc6 {[%emt 0:01:50]} bxc6 {[%emt 0:00:27]} 25. Nd4 {[%emt 0:05:00]} cxb5 {[%emt 0:07:01]} 26. axb5 {[%emt 0:02:55]} Rxa3 {[%emt 0:10:22]} 1/2-1/2

[Event "8th Gibraltar U16-Junior 2018"]
[Site "Caleta"]
[Date "2018.08.19"]
[Round "5"]
[White "Atara, Omeet J"]
[Black "Vyas, Param"]
[Result "1-0"]
[ECO "A45"]
[WhiteElo "1704"]
[BlackElo "1372"]
[Annotator "NA"]
[PlyCount "95"]
[EventDate "2018.08.17"]
[EventType "swiss"]
[EventCountry "GGB"]
[SourceTitle "playchess.com"]
[Source "ChessBase"]
[SourceQuality "1"]
[TimeControl "6600+10"]

1. d4 {[%emt 0:00:00]} d5 {[%emt 0:00:07]} 2. Bg5 {[%emt 0:00:00]} Nf6 {[%emt 0:00:29]} 3. Bxf6 {[%emt 0:00:00]} exf6 {[%emt 0:00:50]} 4. e3 {[%emt 0:00:21]} g6 {[%emt 0:04:20]} 5. g3 {[%emt 0:00:37]} Bg7 {[%emt 0:02:59]} 6. Bg2 {[%emt 0:00:15]} O-O {[%emt 0:01:16]} 7. Ne2 {[%emt 0:00:17]} c6 {[%emt 0:01:13]} 8. O-O {[%emt 0:01:23]} f5 {[%emt 0:02:41]} 9. c4 {[%emt 0:02:46]} Be6 {[%emt 0:07:52]} 10. Nf4 {[%emt 0:03:39]} dxc4 {[%emt 0:13:08]} 11. Qc2 {[%emt 0:03:27]} Na6 {[%emt 0:03:13]} 12. Nxe6 {[%emt 0:06:08]} fxe6 {[%emt 0:00:15]} 13. Qxc4 {[%emt 0:04:14]} Nc7 {[%emt 0:01:10]} 14. a4 {[%emt 0:05:29]} Qe7 {[%emt 0:06:21]} 15. Nc3 {[%emt 0:04:46]} Kh8 {[%emt 0:10:10]} 16. Rfd1 {[%emt 0:05:44]} Rfd8 {[%emt 0:11:36]} 17. Qb3 {[%emt 0:05:26]} Rab8 {[%emt 0:02:48]} 18. a5 {[%emt 0:07:15]} Na6 {[%emt 0:06:14]} 19. Bf1 {[%emt 0:05:31]} Nc7 {[%emt 0:02:29]} 20. Bg2 {[%emt 0:03:24]} Na6 {[%emt 0:00:40]} 21. Na4 {[%emt 0:03:56]} Rd6 {[%emt 0:06:16]} 22. Rac1 {[%emt 0:03:56]} Rbd8 {[%emt 0:03:09]} 23. Bf1 {[%emt 0:03:43]} e5 {[%emt 0:03:20]} 24. dxe5 {[%emt 0:02:38]} Rxd1 {[%emt 0:01:32]} 25. Rxd1 {[%emt 0:00:02]} Rxd1 {[%emt 0:00:20]} 26. Qxd1 {[%emt 0:00:07]} Bxe5 {[%emt 0:00:21]} 27. Bxa6 {[%emt 0:01:56]} bxa6 {[%emt 0:00:08]} 28. Qc2 {[%emt 0:04:25]} Bd6 {[%emt 0:00:29]} 29. Qc3+ {[%emt 0:03:33]} Be5 {[%emt 0:03:55]} 30. Qxc6 {[%emt 0:00:42]} Kg7 {[%emt 0:01:12]} 31. Qxa6 {[%emt 0:01:45]} Qd7 {[%emt 0:00:49]} 32. Nc3 {[%emt 0:05:15]} Qc7 {[%emt 0:01:19]} 33. Kg2 {[%emt 0:03:30]} Kh6 {[%emt 0:00:45]} 34. h4 {[%emt 0:04:15]} Qd7 {[%emt 0:01:23]} 35. Qb5 {[%emt 0:02:21]} Qc7 {[%emt 0:01:50]} 36. a6 {[%emt 0:05:35]} Bd6 {[%emt 0:01:49]} 37. Qb7 {[%emt 0:00:50]} Qc5 {[%emt 0:00:24]} 38. Nb5 {[%emt 0:01:42]} Be7 {[%emt 0:01:42]} 39. Nxa7 {[%emt 0:00:33]} Bd8 {[%emt 0:00:43]} 40. Nc8 {[%emt 0:01:00]} Bc7 {[%emt 0:00:57]} 41. a7 {[%emt 0:00:13]} f4 {[%emt 0:01:08]} 42. a8=Q {[%emt 0:00:26]} g5 {[%emt 0:01:40]} 43. Qc6+ {[%emt 0:00:00]} Qxc6+ {[%emt 0:00:02]} 44. Qxc6+ {[%emt 0:00:01]} Kh5 {[%emt 0:00:02]} 45. Qxc7 {[%emt 0:00:07]} h6 {[%emt 0:00:11]} 46. hxg5 {[%emt 0:00:04]} hxg5 {[%emt 0:00:12]} 47. Qh7+ {[%emt 0:00:01]} Kg4 {[%emt 0:00:01]} 48. Qh3# {[%emt 0:00:02]} 1-0

[Event "8th Gibraltar U16-Junior 2018"]
[Site "Caleta"]
[Date "2018.08.19"]
[Round "5"]
[White "Lorente Serrano, Rosa Adela"]
[Black "Tombolis, Christopher"]
[Result "0-1"]
[ECO "C00"]
[WhiteElo "1682"]
[BlackElo "1900"]
[Annotator "NA"]
[PlyCount "72"]
[EventDate "2018.08.17"]
[EventType "swiss"]
[EventCountry "GGB"]
[SourceTitle "playchess.com"]
[Source "ChessBase"]
[SourceQuality "1"]
[TimeControl "6600+10"]

1. Nf3 {[%emt 0:00:04]} d5 {[%emt 0:00:00]} 2. g3 {[%emt 0:00:40]} Nf6 {[%emt 0:00:05]} 3. Bg2 {[%emt 0:00:40]} e6 {[%emt 0:02:28]} 4. O-O {[%emt 0:01:54]} Be7 {[%emt 0:00:12]} 5. d3 {[%emt 0:01:27]} c5 {[%emt 0:01:01]} 6. Nbd2 {[%emt 0:00:13]} Nc6 {[%emt 0:03:49]} 7. e4 {[%emt 0:02:41]} Qc7 {[%emt 0:01:00]} 8. Re1 {[%emt 0:01:47]} dxe4 {[%emt 0:01:16]} 9. dxe4 {[%emt 0:01:11]} O-O {[%emt 0:00:54]} 10. c3 {[%emt 0:00:16]} Rd8 {[%emt 0:02:05]} 11. Qc2 {[%emt 0:02:35]} Ng4 {[%emt 0:04:10]} 12. Nf1 $11 {[%emt 0:04:45]} h5 {[%emt 0:28:10]} 13. h3 {[%emt 0:05:45]} Nge5 {[%emt 0:01:09]} 14. Nxe5 {[%emt 0:00:40]} Nxe5 {[%emt 0:00:15]} 15. Bf4 {[%emt 0:05:02]} g5 {[%emt 0:00:52]} 16. Bxe5 {[%emt 0:08:02]} Qxe5 {[%emt 0:00:02]} 17. Qe2 {[%emt 0:00:13]} Qh8 {[%emt 0:02:13]} 18. Rad1 {[%emt 0:03:33]} Rxd1 {[%emt 0:11:26]} 19. Rxd1 {[%emt 0:00:06]} a6 {[%emt 0:01:07]} 20. e5 {[%emt 0:03:04]} Rb8 {[%emt 0:01:01]} 21. f4 {[%emt 0:04:13]} gxf4 {[%emt 0:03:32]} 22. gxf4 {[%emt 0:00:24]} Qh6 {[%emt 0:02:41]} 23. Rd3 {[%emt 0:04:58]} Bh4 {[%emt 0:05:57]} 24. Qe4 {[%emt 0:06:28]} b5 {[%emt 0:06:01]} 25. Qc6 {[%emt 0:12:13]} Bb7 {[%emt 0:14:27]} 26. Qc7 {[%emt 0:00:12]} Bxg2 {[%emt 0:00:03]} 27. Qxb8+ {[%emt 0:00:09]} Kh7 {[%emt 0:00:13]} 28. Ng3 {[%emt 0:17:36]} Be4 {[%emt 0:05:39]} 29. Nxe4 {[%emt 0:03:56]} Qg6+ {[%emt 0:00:06]} 30. Ng5+ {[%emt 0:00:03]} Bxg5 {[%emt 0:00:25]} 31. Rg3 {[%emt 0:00:04]} Qb1+ {[%emt 0:00:04]} 32. Kh2 {[%emt 0:00:20]} Qc2+ {[%emt 0:03:09]} 33. Rg2 {[%emt 0:00:07]} Bxf4+ {[%emt 0:00:11]} 34. Kh1 {[%emt 0:00:11]} Qd1+ {[%emt 0:00:09]} 35. Rg1 {[%emt 0:00:24]} Qf3+ {[%emt 0:00:06]} 36. Rg2 {[%emt 0:00:06]} Qf1+ {[%emt 0:00:05]} 0-1

[Event "8th Gibraltar U16-Junior 2018"]
[Site "Caleta"]
[Date "2018.08.19"]
[Round "5"]
[White "Ye, Kevin"]
[Black "Headlong, Benjamin"]
[Result "1/2-1/2"]
[ECO "C42"]
[WhiteElo "1653"]
[BlackElo "1597"]
[Annotator "NA"]
[PlyCount "40"]
[EventDate "2018.08.17"]
[EventType "swiss"]
[EventCountry "GGB"]
[SourceTitle "playchess.com"]
[Source "ChessBase"]
[SourceQuality "1"]
[TimeControl "6600+10"]

1. e4 {[%emt 0:00:00]} e5 {[%emt 0:00:19]} 2. Nf3 {[%emt 0:00:00]} Nf6 {[%emt 0:00:11]} 3. Nxe5 {[%emt 0:00:08]} d6 {[%emt 0:00:24]} 4. Nf3 {[%emt 0:00:05]} Nxe4 {[%emt 0:00:06]} 5. d4 {[%emt 0:00:05]} Bg4 {[%emt 0:00:44]} 6. Be2 {[%emt 0:01:08]} Be7 {[%emt 0:00:51]} 7. h3 {[%emt 0:01:26]} Bxf3 {[%emt 0:01:42]} 8. Bxf3 {[%emt 0:00:43]} d5 {[%emt 0:00:24]} 9. O-O {[%emt 0:00:10]} O-O {[%emt 0:00:14]} 10. c4 {[%emt 0:03:46]} c6 {[%emt 0:00:31]} 11. Bf4 {[%emt 0:04:02]} Ng5 {[%emt 0:01:24]} 12. cxd5 {[%emt 0:02:43]} Nxf3+ {[%emt 0:00:34]} 13. Qxf3 {[%emt 0:00:07]} Qxd5 {[%emt 0:00:40]} 14. Qg3 {[%emt 0:21:26]} Bf6 {[%emt 0:03:12]} 15. Rd1 {[%emt 0:01:50]} Nd7 {[%emt 0:01:46]} 16. Nc3 {[%emt 0:00:35]} Qf5 {[%emt 0:01:21]} 17. Rac1 {[%emt 0:05:02]} Qg6 {[%emt 0:02:20]} 18. Qf3 {[%emt 0:01:58]} Nb6 {[%emt 0:02:18]} 19. Ne4 {[%emt 0:10:31]} Nd5 {[%emt 0:00:45]} 20. Bg3 {[%emt 0:00:47]} Be7 {[%emt 0:05:29]} 1/2-1/2

[Event "8th Gibraltar U16-Junior 2018"]
[Site "Caleta"]
[Date "2018.08.19"]
[Round "5"]
[White "Greco, Joseph"]
[Black "Cox, Toby"]
[Result "1-0"]
[ECO "A85"]
[WhiteElo "1626"]
[BlackElo "1479"]
[Annotator "NA"]
[PlyCount "153"]
[EventDate "2018.08.17"]
[EventType "swiss"]
[EventCountry "GGB"]
[SourceTitle "playchess.com"]
[Source "ChessBase"]
[SourceQuality "1"]
[TimeControl "6600+10"]

1. Nf3 {[%emt 0:00:00]} f5 {[%emt 0:00:00]} 2. d4 {[%emt 0:00:11]} Nf6 {[%emt 0:00:03]} 3. c4 {[%emt 0:00:39]} e6 {[%emt 0:00:05]} 4. Nc3 {[%emt 0:00:19]} d6 {[%emt 0:00:13]} 5. Bg5 {[%emt 0:00:25]} Be7 {[%emt 0:00:17]} 6. e3 {[%emt 0:00:43]} O-O {[%emt 0:00:12]} 7. Bd3 {[%emt 0:00:37]} Qe8 {[%emt 0:01:47]} 8. Qc2 {[%emt 0:01:28]} Nbd7 {[%emt 0:00:57]} 9. e4 {[%emt 0:01:24]} fxe4 {[%emt 0:00:13]} 10. Nxe4 {[%emt 0:00:57]} h6 {[%emt 0:01:59]} 11. Nxf6+ {[%emt 0:07:58]} Nxf6 {[%emt 0:00:11]} 12. Be3 {[%emt 0:01:35]} c6 {[%emt 0:01:28]} 13. O-O {[%emt 0:00:36]} d5 {[%emt 0:03:14]} 14. Rfe1 {[%emt 0:03:42]} Qd8 {[%emt 0:06:13]} 15. c5 {[%emt 0:02:29]} Qc7 {[%emt 0:04:23]} 16. Ne5 {[%emt 0:01:03]} Bd7 {[%emt 0:07:10]} 17. Bf4 {[%emt 0:01:37]} Ne4 {[%emt 0:01:57]} 18. Bxe4 {[%emt 0:04:22]} dxe4 {[%emt 0:01:27]} 19. Qxe4 {[%emt 0:01:15]} Rf5 {[%emt 0:03:22]} 20. Nxd7 {[%emt 0:04:01]} Qxd7 {[%emt 0:01:34]} 21. Qxe6+ {[%emt 0:05:27]} Qxe6 {[%emt 0:00:09]} 22. Rxe6 {[%emt 0:00:05]} Kf7 {[%emt 0:01:21]} 23. Re4 {[%emt 0:00:35]} Bf6 {[%emt 0:03:35]} 24. f3 {[%emt 0:02:01]} Rd8 {[%emt 0:04:54]} 25. Rd1 {[%emt 0:01:36]} Rxc5 {[%emt 0:01:40]} 26. Rd2 {[%emt 0:02:22]} Rcd5 {[%emt 0:00:32]} 27. Be3 {[%emt 0:01:41]} c5 {[%emt 0:00:13]} 28. b3 {[%emt 0:01:32]} cxd4 {[%emt 0:01:23]} 29. Bf2 {[%emt 0:00:14]} a6 {[%emt 0:06:35]} 30. Kf1 {[%emt 0:01:36]} d3 {[%emt 0:00:42]} 31. Rc4 {[%emt 0:01:20]} R8d7 {[%emt 0:04:12]} 32. Be3 {[%emt 0:00:38]} h5 {[%emt 0:06:27]} 33. f4 {[%emt 0:09:27]} Kg6 {[%emt 0:06:28]} 34. Kf2 {[%emt 0:01:08]} R5d6 {[%emt 0:02:57]} 35. h3 {[%emt 0:02:55]} Bd8 {[%emt 0:01:36]} 36. b4 {[%emt 0:02:04]} b5 {[%emt 0:02:19]} 37. Rc5 {[%emt 0:04:04]} Bf6 {[%emt 0:03:32]} 38. a3 {[%emt 0:05:25]} Rd5 {[%emt 0:05:21]} 39. Rc1 {[%emt 0:06:01]} Bh4+ {[%emt 0:08:20]} 40. g3 {[%emt 0:01:26]} Bf6 {[%emt 0:00:05]} 41. Bc5 {[%emt 0:01:03]} Kf5 {[%emt 0:04:21]} 42. Kf3 {[%emt 0:00:26]} g5 {[%emt 0:02:53]} 43. g4+ {[%emt 0:00:33]} hxg4+ {[%emt 0:00:06]} 44. hxg4+ {[%emt 0:00:06]} Ke6 {[%emt 0:00:56]} 45. f5+ {[%emt 0:00:23]} Kf7 {[%emt 0:00:22]} 46. Be3 {[%emt 0:05:05]} R5d6 {[%emt 0:02:45]} 47. Rh1 {[%emt 0:01:50]} Bc3 {[%emt 0:01:22]} 48. Rh7+ {[%emt 0:00:55]} Kf6 {[%emt 0:00:06]} 49. Rxd7 {[%emt 0:04:09]} Rxd7 {[%emt 0:00:04]} 50. Rd1 {[%emt 0:00:23]} d2 {[%emt 0:02:00]} 51. Ke2 {[%emt 0:01:23]} Bb2 {[%emt 0:00:01]} 52. Bxd2 {[%emt 0:00:29]} Re7+ {[%emt 0:00:24]} 53. Kf3 {[%emt 0:00:57]} Rc7 {[%emt 0:00:43]} 54. Re1 {[%emt 0:00:41]} Rc6 {[%emt 0:00:50]} 55. Re3 {[%emt 0:00:38]} Bd4 {[%emt 0:01:36]} 56. Rd3 {[%emt 0:01:00]} Bb2 {[%emt 0:00:01]} 57. Be3 {[%emt 0:00:56]} Be5 {[%emt 0:01:02]} 58. a4 {[%emt 0:02:01]} bxa4 {[%emt 0:00:19]} 59. Ra3 {[%emt 0:00:07]} Rc3 {[%emt 0:00:37]} 60. Rxa4 {[%emt 0:00:45]} Kf7 {[%emt 0:00:14]} 61. Ke4 {[%emt 0:01:08]} Bd6 {[%emt 0:00:08]} 62. Rxa6 {[%emt 0:01:19]} Bxb4 {[%emt 0:00:07]} 63. Bxg5 {[%emt 0:00:52]} Rc4+ {[%emt 0:00:08]} 64. Kf3 {[%emt 0:00:15]} Rc3+ {[%emt 0:00:02]} 65. Be3 {[%emt 0:00:20]} Bc5 {[%emt 0:00:02]} 66. Re6 {[%emt 0:00:01]} Be7 {[%emt 0:00:19]} 67. Kf4 {[%emt 0:00:29]} Rc4+ {[%emt 0:00:03]} 68. Re4 {[%emt 0:00:17]} Rc3 {[%emt 0:00:30]} 69. g5 {[%emt 0:01:01]} Bd6+ {[%emt 0:00:10]} 70. Kg4 {[%emt 0:00:13]} Rc2 {[%emt 0:00:07]} 71. g6+ {[%emt 0:00:07]} Kg7 {[%emt 0:00:05]} 72. Bd4+ {[%emt 0:00:08]} Kg8 {[%emt 0:00:01]} 73. Re8+ {[%emt 0:00:03]} Bf8 {[%emt 0:00:06]} 74. f6 {[%emt 0:00:18]} Rg2+ {[%emt 0:00:24]} 75. Kf5 {[%emt 0:00:02]} Rf2+ {[%emt 0:00:03]} 76. Bxf2 {[%emt 0:00:04]} Kh8 {[%emt 0:00:01]} 77. Rxf8# {[%emt 0:00:02]} 1-0